[Event "EYCC Girls-U10 2019"]
[Site "Bratislava"]
[Date "2019.08.05"]
[Round "4.5"]
[White "Ciarletta, Iris"]
[Black "Shukhman, Anna"]
[Result "1-0"]
[ECO "B23"]
[WhiteElo "1329"]
[BlackElo "1806"]
[Annotator "NA"]
[PlyCount "88"]
[EventDate "2019.08.02"]
[EventType "swiss"]
[EventCountry "SVK"]
[SourceTitle "playchess.com"]
[Source "ChessBase"]
[SourceQuality "1"]
[TimeControl "40/5400+30:1800+30"]

1. e4 {[%emt 0:00:00]} c5 {[%emt 0:00:00]} 2. Nc3 {[%emt 0:00:00]} e6 {[%emt 0:00:00]} 3. f4 {[%emt 0:01:30]} d5 {[%emt 0:00:00]} 4. d3 {[%emt 0:01:08]} g6 {[%emt 0:00:29]} 5. Nf3 {[%emt 0:00:25]} Bg7 {[%emt 0:00:15]} 6. Be2 {[%emt 0:01:05]} Ne7 {[%emt 0:00:15]} 7. O-O {[%emt 0:01:24]} O-O {[%emt 0:00:06]} 8. Qe1 {[%emt 0:02:03]} Nbc6 {[%emt 0:02:08]} 9. Qh4 {[%emt 0:02:53]} b6 {[%emt 0:07:25]} 10. f5 {[%emt 0:02:00]} exf5 {[%emt 0:02:51]} 11. Bh6 {[%emt 0:03:33]} fxe4 {[%emt 0:14:04]} 12. dxe4 {[%emt 0:01:25]} dxe4 {[%emt 0:09:43]} 13. Ng5 {[%emt 0:00:35]} Nf5 {[%emt 0:00:40]} 14. Rxf5 {[%emt 0:01:28]} Bxf5 {[%emt 0:01:44]} 15. Bxg7 {[%emt 0:01:27]} Kxg7 {[%emt 0:00:05]} 16. Qxh7+ {[%emt 0:00:13]} Kf6 {[%emt 0:00:07]} 17. Ngxe4+ {[%emt 0:01:00]} Ke7 {[%emt 0:02:57]} 18. Rd1 {[%emt 0:03:46]} Nd4 {[%emt 0:00:53]} 19. Bd3 {[%emt 0:00:32]} Be6 {[%emt 0:13:34]} 20. Rf1 {[%emt 0:02:32]} Nf5 {[%emt 0:02:20]} 21. Qh3 {[%emt 0:01:09]} Qd4+ {[%emt 0:01:29]} 22. Rf2 {[%emt 0:02:00]} Qe5 {[%emt 0:08:11]} 23. Qf3 {[%emt 0:01:52]} Rh8 {[%emt 0:01:25]} 24. Ng3 {[%emt 0:01:16]} Nd6 {[%emt 0:05:37]} 25. Bb5 {[%emt 0:05:06]} Rad8 {[%emt 0:02:12]} 26. Bd3 {[%emt 0:01:03]} Rh4 {[%emt 0:01:18]} 27. Re2 {[%emt 0:04:01]} Qd4+ {[%emt 0:00:22]} 28. Rf2 {[%emt 0:00:38]} Rdh8 {[%emt 0:03:34]} 29. Nf1 {[%emt 0:01:31]} c4 {[%emt 0:01:45]} 30. Be2 {[%emt 0:01:16]} b5 {[%emt 0:03:20]} 31. Qc6 {[%emt 0:01:25]} b4 {[%emt 0:01:32]} 32. Nd1 {[%emt 0:00:37]} Ne4 {[%emt 0:00:35]} 33. c3 {[%emt 0:01:25]} bxc3 {[%emt 0:00:32]} 34. bxc3 {[%emt 0:00:05]} Qe5 {[%emt 0:00:39]} 35. g3 {[%emt 0:02:05]} Nxf2 {[%emt 0:00:46]} 36. gxh4 Nh3+ 37. Kg2 Bd5+ 38. Qxd5 Nf4+ 39. Kg1 Qxd5 40. Kf2 Qg2+ 41. Ke3 {[%emt 0:05:09]} Qxe2+ {[%emt 0:01:52]} 42. Kxf4 {[%emt 0:00:03]} Rxh4+ {[%emt 0:00:15]} 43. Kg3 {[%emt 0:00:23]} Rg4+ {[%emt 0:00:05]} 44. Kh3 {[%emt 0:00:07]} Qg2# 1-0

[Event "EYCC Girls-U10 2019"]
[Site "Bratislava"]
[Date "2019.08.05"]
[Round "4.6"]
[White "Bagas, Ana"]
[Black "Iudina, Veronika"]
[Result "0-1"]
[ECO "C22"]
[WhiteElo "1442"]
[BlackElo "1357"]
[Annotator "NA"]
[PlyCount "84"]
[EventDate "2019.08.02"]
[EventType "swiss"]
[EventCountry "SVK"]
[SourceTitle "playchess.com"]
[Source "ChessBase"]
[SourceQuality "1"]
[TimeControl "40/5400+30:1800+30"]

1. e4 {[%emt 0:00:00]} e5 {[%emt 0:00:00]} 2. d4 {[%emt 0:00:00]} exd4 {[%emt 0:00:16]} 3. Qxd4 {[%emt 0:00:00]} Nc6 {[%emt 0:00:21]} 4. Qe3 {[%emt 0:00:03]} d6 {[%emt 0:01:39]} 5. Nc3 {[%emt 0:00:18]} Nf6 {[%emt 0:01:20]} 6. Bd2 {[%emt 0:01:03]} Be7 {[%emt 0:02:34]} 7. O-O-O {[%emt 0:01:26]} O-O {[%emt 0:04:53]} 8. h3 {[%emt 0:01:35]} a6 {[%emt 0:02:16]} 9. g4 {[%emt 0:01:38]} b5 {[%emt 0:02:52]} 10. f4 {[%emt 0:02:45]} Nb8 {[%emt 0:06:03]} 11. g5 {[%emt 0:03:13]} Ne8 {[%emt 0:03:02]} 12. Nf3 {[%emt 0:06:38]} c5 {[%emt 0:02:23]} 13. f5 {[%emt 0:06:07]} Bb7 {[%emt 0:04:27]} 14. Rg1 {[%emt 0:08:07]} Kh8 {[%emt 0:04:09]} 15. g6 {[%emt 0:06:09]} fxg6 {[%emt 0:03:13]} 16. fxg6 {[%emt 0:00:27]} h6 {[%emt 0:01:38]} 17. Rg4 {[%emt 0:11:32]} Nf6 {[%emt 0:02:09]} 18. Rh4 {[%emt 0:03:22]} Ng8 {[%emt 0:01:54]} 19. Rf4 {[%emt 0:04:12]} Rxf4 {[%emt 0:01:15]} 20. Qxf4 {[%emt 0:00:10]} b4 {[%emt 0:00:52]} 21. Nd5 {[%emt 0:01:06]} Bxd5 {[%emt 0:00:53]} 22. exd5 Nf6 {[%emt 0:01:33]} 23. Re1 {[%emt 0:03:53]} Nbd7 {[%emt 0:04:02]} 24. Bc4 {[%emt 0:04:23]} Nb6 {[%emt 0:02:13]} 25. Bb3 {[%emt 0:06:48]} a5 {[%emt 0:02:10]} 26. a3 {[%emt 0:01:36]} Rc8 {[%emt 0:04:13]} 27. Ba2 {[%emt 0:04:19]} Qd7 {[%emt 0:04:07]} 28. Nh4 {[%emt 0:03:20]} Bf8 {[%emt 0:01:52]} 29. Qf3 {[%emt 0:01:43]} Qa4 {[%emt 0:03:07]} 30. Bb3 {[%emt 0:01:55]} Qb5 {[%emt 0:00:54]} 31. c4 {[%emt 0:03:15]} bxc3 {[%emt 0:03:01]} 32. Qxc3 {[%emt 0:00:33]} a4 {[%emt 0:01:37]} 33. Ba2 {[%emt 0:01:22]} Nbxd5 {[%emt 0:01:53]} 34. Qf3 {[%emt 0:01:35]} c4 {[%emt 0:01:19]} 35. Qf5 {[%emt 0:01:20]} Rb8 {[%emt 0:01:08]} 36. Qc2 {[%emt 0:00:42]} c3 {[%emt 0:02:23]} 37. Bxc3 {[%emt 0:01:26]} Nxc3 {[%emt 0:00:14]} 38. bxc3 {[%emt 0:00:37]} Qg5+ {[%emt 0:00:14]} 39. Kd1 {[%emt 0:00:56]} Qxh4 {[%emt 0:00:23]} 40. Rh1 {[%emt 0:00:00]} d5 {[%emt 0:00:00]} 41. Qh2 {[%emt 0:03:53]} Rc8 {[%emt 0:02:03]} 42. Qc2 {[%emt 0:00:10]} Qe4 {[%emt 0:00:25] Ke1} 0-1

[Event "EYCC Girls-U10 2019"]
[Site "Bratislava"]
[Date "2019.08.05"]
[Round "4.7"]
[White "Zavivaeva, Evelina"]
[Black "Liashkevich, Lizaveta"]
[Result "1/2-1/2"]
[ECO "B50"]
[WhiteElo "1302"]
[BlackElo "1406"]
[Annotator "NA"]
[PlyCount "156"]
[EventDate "2019.08.02"]
[EventType "swiss"]
[EventCountry "SVK"]
[SourceTitle "playchess.com"]
[Source "ChessBase"]
[SourceQuality "1"]
[TimeControl "40/5400+30:1800+30"]

1. e4 c5 2. Nf3 d6 3. c3 Nf6 4. h3 e6 5. Bd3 Be7 6. Bc2 b5 7. a4 b4 8. O-O O-O 9. d4 Bb7 10. Re1 a5 11. Nbd2 Nc6 12. Nf1 Re8 13. Ng3 Ba6 14. Bf4 Qb6 15. e5 dxe5 16. Nxe5 cxd4 17. Nxc6 Qxc6 18. cxd4 Rad8 19. Rc1 Qd7 20. Be5 Bb7 21. Bd3 Qd5 22. Ne4 Rc8 23. Bxf6 Rxc1 24. Qxc1 Bxf6 25. Nxf6+ gxf6 26. Be4 Qd7 27. Bxb7 Qxb7 28. Qc5 Ra8 29. b3 Qc8 30. Rc1 Qd8 31. Rc4 Kh8 32. Qc7 Kg7 33. Qxd8 Rxd8 34. f4 Kg6 35. g4 h5 36. Kf2 hxg4 37. hxg4 f5 38. g5 f6 39. gxf6 Kxf6 40. Ke3 Rh8 41. Rc5 Rh3+ 42. Kd2 Rxb3 43. Rxa5 Ra3 44. Kc2 Kg7 45. Ra7+ Kf6 46. a5 Kg6 47. a6 Kf6 48. Ra8 Kg7 49. a7 Kh7 50. Re8 Rxa7 51. Rxe6 Kg7 52. Kb3 Rb7 53. Re3 Kf6 54. Kc4 Rd7 55. d5 Rd6 56. Rb3 Rd8 57. Rxb4 Ke7 58. Rb7+ Kf6 59. Rb6+ Kf7 60. Re6 Ra8 61. Rb6 Re8 62. Kc5 Re4 63. Rb4 Re8 64. Rb7+ Kf6 65. d6 Ke6 66. Kc6 Rc8+ 67. Rc7 Re8 68. d7 Rd8 69. Ra7 Ke7 70. Ra5 Rxd7 71. Re5+ Kd8 72. Rxf5 Rh7 73. Rf6 Ke7 74. Rd6 Rf7 75. Rd4 Ke6 76. Kc5 Kf5 77. Kd6 Rg7 78. Rc4 Rg4 1/2-1/2

[Event "EYCC Girls-U10 2019"]
[Site "Bratislava"]
[Date "2019.08.05"]
[Round "4.8"]
[White "Stoll, Lucia"]
[Black "Trunz, Tamila"]
[Result "1-0"]
[ECO "C44"]
[WhiteElo "1403"]
[BlackElo "1274"]
[Annotator "NA"]
[PlyCount "43"]
[EventDate "2019.08.02"]
[EventType "swiss"]
[EventCountry "SVK"]
[SourceTitle "playchess.com"]
[Source "ChessBase"]
[SourceQuality "1"]
[TimeControl "40/5400+30:1800+30"]

1. e4 e5 2. Nf3 Nc6 3. d4 exd4 4. Nxd4 Nf6 5. Nxc6 bxc6 6. Bd3 g6 7. Bg5 Bg7 8. e5 Qe7 9. O-O Qc5 10. Bxf6 Bxf6 11. exf6 d6 12. Re1+ Kf8 13. Qd2 h5 14. Re7 Be6 15. Bxg6 h4 16. Nc3 h3 17. g3 Rb8 18. Qe2 d5 19. Rxe6 fxe6 20. Qxe6 Rh7 21. Bxh7 Re8 22. Qg8# 1-0

[Event "EYCC Girls-U10 2019"]
[Site "Bratislava"]
[Date "2019.08.05"]
[Round "4.9"]
[White "Fedorova, Olesya"]
[Black "Szarvas, Nora"]
[Result "1-0"]
[ECO "B09"]
[WhiteElo "1516"]
[BlackElo "1240"]
[Annotator "NA"]
[PlyCount "87"]
[EventDate "2019.08.02"]
[EventType "swiss"]
[EventCountry "SVK"]
[SourceTitle "playchess.com"]
[Source "ChessBase"]
[SourceQuality "1"]
[TimeControl "40/5400+30:1800+30"]

1. e4 d6 2. d4 Nf6 3. Nc3 g6 4. f4 Bg7 5. Nf3 O-O 6. Bd3 c5 7. dxc5 dxc5 8. O-O Bg4 9. Be3 Qc7 10. e5 Nfd7 11. Nd5 Qd8 12. Be4 e6 13. Nf6+ Bxf6 14. Bxb7 Nb6 15. Bxa8 Nxa8 16. exf6 Qxf6 17. Bxc5 Rd8 18. Qc1 Bxf3 19. Rxf3 Nc6 20. c3 Rd5 21. Qe3 a6 22. Rff1 Qf5 23. Bd4 Nxd4 24. cxd4 Nc7 25. a4 Ne8 26. Rac1 Nd6 27. Rc5 Nb7 28. Rxd5 Qxd5 29. Rc1 Nd6 30. Qe5 Qxe5 31. dxe5 Ne4 32. Rc6 a5 33. Ra6 Nc5 34. Rxa5 Nd3 35. Rb5 Nxf4 36. a5 Nd5 37. a6 Nc7 38. Rb8+ Kg7 39. a7 h6 40. Rc8 Nb5 41. a8=Q Nd4 42. Rg8+ Kh7 43. Rh8+ Kg7 44. Qg8# 1-0

[Event "EYCC Girls-U10 2019"]
[Site "Bratislava"]
[Date "2019.08.05"]
[Round "4.10"]
[White "Sosovickova, Martina"]
[Black "Toth, Lili"]
[Result "1-0"]
[ECO "C44"]
[WhiteElo "1200"]
[BlackElo "2199"]
[Annotator "NA"]
[PlyCount "119"]
[EventDate "2019.08.02"]
[EventType "swiss"]
[EventCountry "SVK"]
[SourceTitle "playchess.com"]
[Source "ChessBase"]
[SourceQuality "1"]
[TimeControl "40/5400+30:1800+30"]

1. e4 {[%emt 0:00:00]} e5 {[%emt 0:00:00]} 2. Nf3 {[%emt 0:00:00]} Nc6 {[%emt 0:00:00]} 3. c3 {[%emt 0:00:00]} Nf6 {[%emt 0:01:28]} 4. d4 {[%emt 0:00:20]} exd4 {[%emt 0:02:13]} 5. e5 {[%emt 0:00:15]} Qe7 {[%emt 0:08:48]} 6. cxd4 {[%emt 0:08:35]} Nd5 {[%emt 0:02:37]} 7. Be2 {[%emt 0:06:57]} Qb4+ {[%emt 0:02:58]} 8. Qd2 {[%emt 0:02:24]} Qxd2+ {[%emt 0:01:30]} 9. Bxd2 {[%emt 0:00:24]} d6 {[%emt 0:03:04]} 10. Nc3 {[%emt 0:03:46]} Nxc3 {[%emt 0:01:58]} 11. Bxc3 {[%emt 0:00:26]} dxe5 {[%emt 0:01:53]} 12. dxe5 {[%emt 0:01:59]} Be6 {[%emt 0:03:53]} 13. Bb5 {[%emt 0:05:08]} Bd5 {[%emt 0:01:42]} 14. O-O {[%emt 0:03:35]} a6 {[%emt 0:00:38]} 15. Be2 {[%emt 0:01:28]} Bc5 {[%emt 0:02:13]} 16. a3 {[%emt 0:02:11]} Ke7 {[%emt 0:02:14]} 17. Rad1 {[%emt 0:03:09]} Rad8 {[%emt 0:01:46]} 18. Rfe1 {[%emt 0:02:25]} Bb3 {[%emt 0:05:25]} 19. Rd2 {[%emt 0:05:59]} Rxd2 {[%emt 0:03:21]} 20. Nxd2 {[%emt 0:00:34]} Bd5 {[%emt 0:05:12]} 21. Bf3 {[%emt 0:02:22]} Bxf3 {[%emt 0:01:19]} 22. Nxf3 {[%emt 0:00:10]} Rd8 {[%emt 0:00:59]} 23. h3 {[%emt 0:02:12]} Nd4 {[%emt 0:02:19]} 24. Nxd4 {[%emt 0:03:49]} Bxd4 {[%emt 0:00:30]} 25. Bxd4 {[%emt 0:00:14]} Rxd4 {[%emt 0:00:05]} 26. Re2 {[%emt 0:00:21]} Ke6 {[%emt 0:02:24]} 27. Rc2 {[%emt 0:02:50]} c6 {[%emt 0:01:14]} 28. Re2 {[%emt 0:00:30]} Kf5 {[%emt 0:04:39]} 29. g4+ {[%emt 0:03:01]} Ke6 {[%emt 0:00:21]} 30. Kg2 {[%emt 0:06:29]} c5 {[%emt 0:00:54]} 31. Kh2 {[%emt 0:05:08]} b5 {[%emt 0:01:16]} 32. Rc2 {[%emt 0:02:03]} c4 {[%emt 0:01:03]} 33. Re2 {[%emt 0:00:25]} a5 {[%emt 0:00:38]} 34. Kg3 {[%emt 0:01:21]} b4 {[%emt 0:01:12]} 35. axb4 {[%emt 0:00:27]} axb4 {[%emt 0:00:06]} 36. Rc2 {[%emt 0:00:35]} Kxe5 {[%emt 0:00:58]} 37. Kf3 {[%emt 0:00:44]} Rd3+ {[%emt 0:01:22]} 38. Ke2 {[%emt 0:01:06]} Kd4 {[%emt 0:00:16]} 39. h4 {[%emt 0:00:54]} b3 {[%emt 0:07:24]} 40. Rd2 {[%emt 0:00:00]} Ke4 {[%emt 0:00:00]} 41. g5 {[%emt 0:05:48]} Rxd2+ {[%emt 0:08:51]} 42. Kxd2 {[%emt 0:00:26]} Kd4 {[%emt 0:00:06]} 43. h5 {[%emt 0:01:36]} c3+ {[%emt 0:01:00]} 44. bxc3+ {[%emt 0:00:46]} Kc4 {[%emt 0:00:06]} 45. f4 {[%emt 0:01:23]} b2 {[%emt 0:00:39]} 46. Kc2 {[%emt 0:00:08]} b1=Q+ {[%emt 0:00:09]} 47. Kxb1 {[%emt 0:00:04]} Kxc3 {[%emt 0:00:09]} 48. f5 {[%emt 0:00:33]} Kd4 {[%emt 0:00:17]} 49. g6 {[%emt 0:00:46]} hxg6 {[%emt 0:01:57]} 50. f6 {[%emt 0:00:35]} gxf6 {[%emt 0:01:48]} 51. h6 {[%emt 0:00:16]} Ke5 {[%emt 0:00:20]} 52. h7 {[%emt 0:00:11]} Ke6 {[%emt 0:00:11]} 53. h8=Q {[%emt 0:00:16]} f5 {[%emt 0:00:27]} 54. Kc2 {[%emt 0:00:59]} g5 {[%emt 0:01:12]} 55. Kd3 {[%emt 0:02:16]} f6 {[%emt 0:02:16]} 56. Ke3 {[%emt 0:01:45]} Kf7 {[%emt 0:01:23]} 57. Qh7+ {[%emt 0:01:22]} Ke6 {[%emt 0:00:18]} 58. Kf3 {[%emt 0:00:59]} f4 {[%emt 0:04:57]} 59. Kg4 {[%emt 0:01:39]} Kd6 {[%emt 0:01:46]} 60. Qe4 {[%emt 0:02:07] Kd5} 1-0

[Event "EYCC Girls-U10 2019"]
[Site "Bratislava"]
[Date "2019.08.06"]
[Round "5.1"]
[White "Smietanska, Wiktoria"]
[Black "Hnatyshyn, Anastasiia"]
[Result "0-1"]
[ECO "B24"]
[WhiteElo "1547"]
[BlackElo "1380"]
[Annotator "NA"]
[PlyCount "104"]
[EventDate "2019.08.02"]
[EventType "swiss"]
[EventCountry "SVK"]
[SourceTitle "playchess.com"]
[Source "ChessBase"]
[SourceQuality "1"]
[TimeControl "40/5400+30:1800+30"]

1. e4 {[%emt 0:00:00]} c5 {[%emt 0:00:00]} 2. Nc3 {[%emt 0:00:00]} Nc6 {[%emt 0:00:00]} 3. Bb5 {[%emt 0:00:00]} g6 {[%emt 0:00:15]} 4. Bxc6 {[%emt 0:00:02]} bxc6 {[%emt 0:00:09]} 5. f4 {[%emt 0:00:32]} Bg7 {[%emt 0:00:08]} 6. Nf3 {[%emt 0:00:45]} Nf6 {[%emt 0:00:35]} 7. d3 {[%emt 0:00:50]} O-O {[%emt 0:00:09]} 8. O-O {[%emt 0:01:21]} d5 {[%emt 0:01:06]} 9. Qe1 {[%emt 0:06:23]} e6 {[%emt 0:01:55]} 10. h3 {[%emt 0:08:05]} h5 {[%emt 0:06:26]} 11. Kh1 {[%emt 0:02:34]} Ba6 {[%emt 0:03:54]} 12. Rg1 {[%emt 0:06:08]} c4 {[%emt 0:05:43]} 13. e5 {[%emt 0:04:46]} Nd7 {[%emt 0:00:16]} 14. d4 {[%emt 0:02:38]} c5 {[%emt 0:02:09]} 15. g4 {[%emt 0:02:54]} cxd4 {[%emt 0:02:35]} 16. Nxd4 {[%emt 0:02:19]} hxg4 {[%emt 0:00:58]} 17. hxg4 {[%emt 0:02:00]} Bb7 {[%emt 0:09:43]} 18. Rg2 {[%emt 0:04:51]} g5 {[%emt 0:01:35]} 19. Rh2 {[%emt 0:09:38]} Qb6 {[%emt 0:02:15]} 20. Qf2 {[%emt 0:09:23]} gxf4 {[%emt 0:00:51]} 21. Qxf4 {[%emt 0:04:48]} Nxe5 {[%emt 0:01:23]} 22. Na4 {[%emt 0:09:51]} Qa5 {[%emt 0:01:01]} 23. b3 {[%emt 0:03:31]} Qe1+ {[%emt 0:01:04]} 24. Kg2 {[%emt 0:00:32]} Ng6 {[%emt 0:00:12]} 25. Qe3 {[%emt 0:02:03]} Qxe3 {[%emt 0:01:00]} 26. Bxe3 {[%emt 0:00:05]} e5 {[%emt 0:00:17]} 27. Nf3 {[%emt 0:01:06]} d4 {[%emt 0:00:09]} 28. Bh6 {[%emt 0:04:09]} cxb3 {[%emt 0:01:06]} 29. axb3 {[%emt 0:00:26]} e4 {[%emt 0:00:42]} 30. Ng5 {[%emt 0:02:05]} Rfc8 {[%emt 0:00:44]} 31. Bxg7 {[%emt 0:00:43]} Rxc2+ {[%emt 0:00:27]} 32. Kg3 {[%emt 0:00:18]} Rxh2 {[%emt 0:00:11]} 33. Kxh2 {[%emt 0:00:06]} Kxg7 {[%emt 0:00:09]} 34. Rf1 {[%emt 0:00:10]} Ne5 {[%emt 0:00:27]} 35. Kg3 {[%emt 0:00:38]} Rc8 {[%emt 0:00:44]} 36. Rf5 {[%emt 0:01:28]} Re8 {[%emt 0:01:58]} 37. Nc5 {[%emt 0:05:45]} e3 {[%emt 0:05:07]} 38. Rf1 {[%emt 0:02:26]} e2 {[%emt 0:00:43]} 39. Re1 {[%emt 0:00:46]} d3 {[%emt 0:00:06]} 40. Nge4 {[%emt 0:00:00]} Bxe4 {[%emt 0:00:00]} 41. Nxe4 {[%emt 0:00:32]} Nc6 {[%emt 0:00:28]} 42. Nd2 {[%emt 0:00:32]} Nd4 {[%emt 0:00:03]} 43. Kf2 {[%emt 0:01:05]} Nc2 {[%emt 0:00:24]} 44. g5 {[%emt 0:00:41]} Nxe1 {[%emt 0:00:08]} 45. Kxe1 {[%emt 0:00:04]} Re3 {[%emt 0:00:27]} 46. b4 {[%emt 0:00:06]} Rh3 {[%emt 0:00:04]} 47. b5 {[%emt 0:00:13]} Rh1+ {[%emt 0:00:04]} 48. Kf2 {[%emt 0:00:04]} e1=Q+ {[%emt 0:00:06]} 49. Kg2 {[%emt 0:00:09]} Qxd2+ {[%emt 0:00:42]} 50. Kxh1 {[%emt 0:00:13]} Qf2 {[%emt 0:00:13]} 51. b6 {[%emt 0:00:12]} d2 {[%emt 0:00:16]} 52. g6 {[%emt 0:00:11]} d1=Q# {[%emt 0:00:06]} 0-1

[Event "EYCC Girls-U10 2019"]
[Site "Bratislava"]
[Date "2019.08.06"]
[Round "5.2"]
[White "Shukhman, Anna"]
[Black "Seyhan, Pelin"]
[Result "1-0"]
[ECO "C11"]
[WhiteElo "1806"]
[BlackElo "1333"]
[Annotator "NA"]
[PlyCount "79"]
[EventDate "2019.08.02"]
[EventType "swiss"]
[EventCountry "SVK"]
[SourceTitle "playchess.com"]
[Source "ChessBase"]
[SourceQuality "1"]
[TimeControl "40/5400+30:1800+30"]

1. e4 {[%emt 0:00:00]} e6 {[%emt 0:00:00]} 2. d4 {[%emt 0:00:00]} d5 {[%emt 0:00:00]} 3. Nc3 {[%emt 0:00:00]} Nf6 {[%emt 0:00:00]} 4. e5 {[%emt 0:00:00]} Nfd7 {[%emt 0:00:00]} 5. f4 {[%emt 0:00:00]} c5 {[%emt 0:00:00]} 6. Nf3 {[%emt 0:00:00]} Nc6 {[%emt 0:00:04]} 7. Be3 {[%emt 0:00:01]} cxd4 {[%emt 0:00:10]} 8. Nxd4 {[%emt 0:00:17]} Bc5 {[%emt 0:00:07]} 9. Qd2 {[%emt 0:04:03]} a6 {[%emt 0:15:56]} 10. O-O-O {[%emt 0:08:33]} Nxd4 {[%emt 0:01:55]} 11. Bxd4 {[%emt 0:00:13]} Bxd4 {[%emt 0:00:09]} 12. Qxd4 {[%emt 0:00:05]} Qb6 {[%emt 0:00:09]} 13. g3 {[%emt 0:09:40]} Qxd4 {[%emt 0:02:02]} 14. Rxd4 {[%emt 0:00:07]} b5 {[%emt 0:00:18]} 15. Bh3 {[%emt 0:03:17]} Bb7 {[%emt 0:00:52]} 16. Rhd1 {[%emt 0:02:49]} Rc8 {[%emt 0:03:25]} 17. Bf1 {[%emt 0:17:29]} Ke7 {[%emt 0:03:25]} 18. a4 {[%emt 0:01:44]} bxa4 {[%emt 0:00:19]} 19. Rxa4 {[%emt 0:02:33]} Rc7 {[%emt 0:00:38]} 20. Ra3 {[%emt 0:03:51]} Ra8 {[%emt 0:00:23]} 21. Ne2 {[%emt 0:00:39]} Nc5 {[%emt 0:03:13]} 22. Nd4 {[%emt 0:01:05]} g6 {[%emt 0:03:43]} 23. c3 {[%emt 0:03:18]} Ne4 {[%emt 0:03:23]} 24. Kc2 {[%emt 0:03:12]} Kd7 {[%emt 0:04:01]} 25. Rda1 {[%emt 0:01:14]} Nc5 {[%emt 0:00:16]} 26. Ra5 {[%emt 0:02:18]} Ke7 {[%emt 0:02:41]} 27. R1a3 {[%emt 0:02:39]} Kf8 {[%emt 0:01:33]} 28. b4 {[%emt 0:05:00]} Ne4 {[%emt 0:00:13]} 29. b5 {[%emt 0:00:51]} Rac8 {[%emt 0:00:35]} 30. bxa6 {[%emt 0:00:48]} Rxc3+ {[%emt 0:00:08]} 31. Rxc3 {[%emt 0:00:03]} Rxc3+ {[%emt 0:00:10]} 32. Kb2 {[%emt 0:00:43]} Ba8 {[%emt 0:00:28]} 33. Rb5 {[%emt 0:03:34]} Rc8 {[%emt 0:00:21]} 34. a7 {[%emt 0:01:07]} Ke7 {[%emt 0:01:45]} 35. Rb8 {[%emt 0:01:01]} Rf8 {[%emt 0:00:09]} 36. Bb5 {[%emt 0:01:29]} Nc5 {[%emt 0:04:05]} 37. Nc6+ {[%emt 0:00:43]} Bxc6 {[%emt 0:00:09]} 38. Bxc6 {[%emt 0:00:40]} Na6 {[%emt 0:00:40]} 39. Rxf8 {[%emt 0:00:24]} Kxf8 {[%emt 0:00:08]} 40. a8=Q+ {[%emt 0:00:00]} 1-0

[Event "EYCC Girls-U10 2019"]
[Site "Bratislava"]
[Date "2019.08.06"]
[Round "5.3"]
[White "Goriachkina, Oksana"]
[Black "Sidorenja, Milena"]
[Result "1-0"]
[ECO "D00"]
[WhiteElo "1417"]
[BlackElo "1573"]
[Annotator "NA"]
[PlyCount "71"]
[EventDate "2019.08.02"]
[EventType "swiss"]
[EventCountry "SVK"]
[SourceTitle "playchess.com"]
[Source "ChessBase"]
[SourceQuality "1"]
[TimeControl "40/5400+30:1800+30"]

1. d4 {[%emt 0:00:00]} d5 {[%emt 0:00:00]} 2. Bf4 {[%emt 0:00:00]} c6 {[%emt 0:00:00]} 3. e3 {[%emt 0:01:02]} e6 {[%emt 0:04:39]} 4. c3 {[%emt 0:01:59]} f5 {[%emt 0:00:20]} 5. Nf3 {[%emt 0:00:27]} Nf6 {[%emt 0:00:07]} 6. Bd3 {[%emt 0:00:42]} Be7 {[%emt 0:00:56]} 7. O-O {[%emt 0:00:46]} O-O {[%emt 0:00:08]} 8. h3 {[%emt 0:00:50]} Ne4 {[%emt 0:00:22]} 9. Nbd2 {[%emt 0:00:33]} Nd7 {[%emt 0:00:20]} 10. Ne5 {[%emt 0:01:47]} Qe8 {[%emt 0:29:15]} 11. c4 {[%emt 0:09:59]} Rf6 {[%emt 0:23:49]} 12. f3 {[%emt 0:05:42]} Nd6 {[%emt 0:01:06]} 13. Nxd7 {[%emt 0:12:15]} Bxd7 {[%emt 0:01:13]} 14. Qb3 {[%emt 0:07:03]} Qh5 {[%emt 0:15:43]} 15. c5 {[%emt 0:07:43]} Ne8 {[%emt 0:08:19]} 16. Qxb7 {[%emt 0:03:13]} Rd8 {[%emt 0:00:05]} 17. Qxa7 {[%emt 0:03:07]} Rg6 {[%emt 0:00:40]} 18. Kf2 {[%emt 0:01:14]} Nf6 {[%emt 0:03:38]} 19. g4 {[%emt 0:08:59]} Qh4+ {[%emt 0:01:09]} 20. Bg3 {[%emt 0:00:08]} Qh6 {[%emt 0:02:50]} 21. Qa4 {[%emt 0:02:52]} Rf8 {[%emt 0:00:36]} 22. Qc2 {[%emt 0:02:57]} Qxh3 {[%emt 0:00:51]} 23. Rh1 {[%emt 0:07:28]} Nxg4+ {[%emt 0:00:26]} 24. fxg4 {[%emt 0:00:26]} fxg4+ {[%emt 0:00:04]} 25. Bf4 {[%emt 0:00:21]} Bh4+ {[%emt 0:00:05]} 26. Kg1 {[%emt 0:01:20]} Bf2+ {[%emt 0:01:54]} 27. Kxf2 {[%emt 0:00:06]} g3+ {[%emt 0:00:19]} 28. Kg1 {[%emt 0:00:25]} Qg4 {[%emt 0:00:55]} 29. Bxg6 {[%emt 0:01:40]} hxg6 {[%emt 0:00:51]} 30. Qd1 {[%emt 0:00:34]} Rxf4 {[%emt 0:00:41]} 31. Qxg4 {[%emt 0:04:47]} Rxg4 {[%emt 0:00:06]} 32. a4 {[%emt 0:00:12]} Bc8 {[%emt 0:00:21]} 33. b4 {[%emt 0:02:53]} Ba6 {[%emt 0:00:11]} 34. Kg2 {[%emt 0:01:26]} e5 {[%emt 0:00:40]} 35. Nf3 {[%emt 0:01:25]} exd4 {[%emt 0:00:06]} 36. Nxd4 {[%emt 0:00:33]} 1-0